bitfinex/quotes_BTCUSD_20250324
["timestamp","ask_amount","ask_price","bid_price","bid_amount"]
[1742798977679,0.02800585,87219.0,87218.0,0.0011694]
[1742798978231,0.02800585,87219.0,87218.0,0.0001694]
[1742798978704,0.02900585,87219.0,87218.0,0.0001694]
[1742798979252,0.01754085,87219.0,87218.0,0.0001694]
[1742798979459,0.01954085,87219.0,87218.0,0.0001694]
[1742798979677,0.01754085,87219.0,87218.0,0.0001694]
[1742798979952,0.02054085,87219.0,87218.0,0.0001694]
[1742798981135,0.02054085,87219.0,87218.0,0.0803694]
[1742798981315,0.02054085,87219.0,87218.0,0.09057594]
[1742798983397,0.02054085,87219.0,87218.0,0.0803694]
[1742798987886,0.006,87219.0,87218.0,0.0803694]
[1742798990159,0.317465,87219.0,87218.0,0.0001694]
[1742798994858,0.33700585,87219.0,87218.0,0.0001694]
[1742798998375,0.45658088,87219.0,87218.0,0.0001694]
[1742798998587,0.48158088,87219.0,87218.0,4e-07]
[1742798999178,0.52758088,87219.0,87218.0,4e-07]
[1742798999855,0.52458088,87219.0,87218.0,4e-07]
[1742799000062,0.52958088,87219.0,87218.0,4e-07]
[1742799001087,0.570824,87200.0,87199.0,0.0211295]
[1742799001295,1.42219988,87200.0,87199.0,0.0211295]
[1742799002625,1.42228384,87200.0,87199.0,0.0211295]
[1742799004157,1.42628384,87200.0,87199.0,0.0211295]
[1742799004937,1.43028384,87200.0,87199.0,0.0211295]
[1742799005370,1.42628384,87200.0,87199.0,0.0211295]
[1742799005572,1.41618384,87200.0,87199.0,0.0211295]
[1742799005748,1.42118384,87200.0,87199.0,0.0211295]
[1742799006303,1.41718384,87200.0,87199.0,0.0211295]
[1742799006508,1.42218384,87200.0,87199.0,0.0211295]
[1742799006854,1.28806796,87200.0,87199.0,0.0211295]
[1742799007055,1.26306796,87200.0,87199.0,0.0211295]
[1742799007273,0.97760881,87200.0,87199.0,0.0211295]
[1742799007484,1.27760881,87200.0,87199.0,0.0211295]
[1742799007891,1.27260881,87200.0,87199.0,0.0211295]
[1742799008636,1.26760881,87200.0,87199.0,0.0211295]
[1742799009053,1.27260881,87200.0,87199.0,0.0211295]
[1742799009482,1.27760881,87200.0,87199.0,0.0211295]
[1742799010424,1.3003182,87200.0,87199.0,0.0211295]
[1742799012856,0.90034481,87200.0,87199.0,0.0962295]
[1742799013076,0.89534481,87200.0,87199.0,0.10588635]
[1742799013537,0.90681181,87200.0,87199.0,0.10588635]
[1742799014768,0.88080396,87200.0,87199.0,0.10588635]
[1742799015869,0.90681181,87200.0,87199.0,0.0962295]
[1742799017591,0.89227096,87200.0,87199.0,0.0962295]
[1742799021536,0.32155096,87200.0,87199.0,0.0962295]
[1742799023707,0.31008396,87200.0,87199.0,0.0962295]
[1742799025057,0.31008396,87200.0,87199.0,0.1444295]
[1742799025260,0.31008396,87200.0,87199.0,0.23000915]
[1742799025861,0.30008396,87200.0,87199.0,0.23000915]
[1742799026079,0.30408396,87200.0,87199.0,0.23000915]
[1742799026277,0.30808396,87200.0,87199.0,0.23000915]
[1742799026459,0.30408396,87200.0,87199.0,0.23000915]
[1742799026806,0.30108396,87200.0,87199.0,0.23000915]
[1742799027118,0.30208396,87200.0,87199.0,0.23000915]
[1742799027467,0.30208396,87200.0,87199.0,0.1444295]
[1742799031108,0.54790796,87200.0,87199.0,0.0962295]
[1742799031449,0.56244881,87200.0,87199.0,0.0962295]
[1742799041811,0.57255902,87200.0,87199.0,0.0962295]
[1742799042346,0.59568,87200.0,87199.0,0.0962295]
[1742799044389,0.59568,87200.0,87199.0,0.10588635]
[1742799044577,0.59068,87200.0,87199.0,0.10588635]
[1742799044880,0.59568,87200.0,87199.0,0.10588635]
[1742799045499,0.59568,87200.0,87199.0,0.0962295]
[1742799058876,0.31219417,87200.0,87199.0,0.3859575]
[1742799059059,0.01219417,87200.0,87199.0,0.50553253]
[1742799060052,0.01119417,87200.0,87199.0,0.50553253]
[1742799060474,0.01119417,87200.0,87199.0,0.62610756]
[1742799060680,0.005,87224.0,87199.0,0.62610756]
[1742799060681,0.005,87224.0,87217.0,0.229313]
[1742799060890,0.0004232,87218.0,87217.0,0.365278]
[1742799061637,0.0004232,87218.0,87217.0,0.353813]
[1742799061961,0.0014232,87218.0,87217.0,0.353813]
[1742799062168,0.0014232,87218.0,87217.0,0.47338803]
[1742799063199,0.0024232,87218.0,87217.0,0.47338803]
[1742799071774,0.0024232,87218.0,87217.0,0.60946803]
[1742799077867,0.0024232,87218.0,87217.0,0.26058]
[1742799091537,0.0024232,87218.0,87217.0,0.1245]
[1742799091738,0.0024232,87218.0,87217.0,0.2605]
[1742799094555,0.0024232,87218.0,87217.0,0.271965]
[1742799094760,0.0024232,87218.0,87217.0,0.39154003]
[1742799094983,0.0024232,87218.0,87217.0,0.51111506]
[1742799096742,0.0014232,87218.0,87217.0,0.51111506]
[1742799097120,0.0014232,87218.0,87217.0,0.51211506]
[1742799097356,0.0004232,87218.0,87217.0,0.51111506]
[1742799097770,0.0004232,87218.0,87217.0,0.51211506]
[1742799097982,0.0004232,87218.0,87217.0,0.51411506]
[1742799098335,0.0004232,87218.0,87217.0,0.51211506]
[1742799098737,0.0004232,87218.0,87217.0,0.51411506]
[1742799099695,0.0004232,87218.0,87217.0,0.53758301]
[1742799102506,0.0004232,87218.0,87217.0,0.5489921]
[1742799116568,4e-07,87219.0,87218.0,0.369175]
[1742799116776,4.108e-05,87219.0,87218.0,0.56096802]
[1742799117722,4.108e-05,87219.0,87218.0,0.56296802]
[1742799118120,0.000447,87239.0,87218.0,0.56296802]
[1742799118121,0.000447,87239.0,87238.0,0.240719]
[1742799118325,0.00048769,87239.0,87238.0,0.62453403]
[1742799119876,0.00048769,87239.0,87238.0,0.62553403]
[1742799120079,0.00048769,87239.0,87238.0,0.74510906]
[1742799120425,0.00048769,87239.0,87238.0,0.74910906]
[1742799121500,0.00048769,87239.0,87238.0,0.77178513]
[1742799123841,0.00048769,87239.0,87238.0,0.77174513]
[1742799125246,6.9e-07,87239.0,87238.0,0.77174513]
[1742799126489,6.9e-07,87239.0,87238.0,0.76774513]
[1742799126641,0.00100069,87239.0,87238.0,0.77274513]
[1742799126878,6.9e-07,87249.0,87248.0,0.011461]
[1742799127093,4.137e-05,87249.0,87248.0,1.13352874]
[1742799127300,5.7e-07,87254.0,87253.0,0.369078]
[1742799127507,5.7e-07,87254.0,87253.0,0.62441303]
[1742799127713,0.002,87269.0,87253.0,0.62441303]
[1742799127714,7.7e-07,87256.0,87255.0,0.240673]
[1742799127941,7.7e-07,87256.0,87255.0,0.43654803]
[1742799128150,7.7e-07,87256.0,87255.0,0.53071286]
[1742799128575,7.7e-07,87259.0,87258.0,0.240665]
[1742799128819,7.7e-07,87259.0,87258.0,0.43654003]
[1742799129896,7.7e-07,87259.0,87258.0,0.44254003]
[1742799130101,7.7e-07,87259.0,87258.0,0.52075802]
[1742799132594,7.7e-07,87259.0,87258.0,0.56755802]
[1742799132999,7.7e-07,87269.0,87268.0,0.363737]
[1742799133239,4.1e-07,87269.0,87268.0,0.61903203]
[1742799133462,4.1e-07,87269.0,87268.0,0.72906383]
[1742799133666,0.0003392,87275.0,87268.0,0.72906383]
[1742799133667,2e-07,87275.0,87274.0,0.240621]
[1742799133903,2e-07,87275.0,87274.0,1.00677603]
[1742799134086,2e-07,87275.0,87274.0,1.08852946]
[1742799134290,2e-07,87275.0,87274.0,1.13532946]
[1742799134489,2e-07,87281.0,87280.0,0.011457]
[1742799134702,2e-07,87281.0,87280.0,0.57448977]
[1742799134870,2e-07,87281.0,87280.0,0.61956386]
[1742799135305,2e-07,87281.0,87280.0,0.66636386]
[1742799135539,0.002,87289.0,87288.0,0.087756]
[1742799135540,2e-07,87289.0,87288.0,0.087756]
[1742799135747,3e-08,87289.0,87288.0,0.20962164]
[1742799135994,3e-08,87289.0,87288.0,0.32863963]
[1742799136213,3e-08,87289.0,87288.0,0.32634902]
[1742799136801,3e-08,87289.0,87288.0,0.33534902]
[1742799137364,3e-08,87289.0,87288.0,0.33034902]
[1742799137567,3e-08,87299.0,87288.0,0.33034902]
[1742799137774,3e-08,87300.0,87299.0,0.087754]
[1742799137986,8.863e-05,87300.0,87299.0,0.91549935]
[1742799138214,6.3e-07,87300.0,87299.0,0.91320903]
[1742799139301,6.3e-07,87300.0,87299.0,0.91720903]
[1742799139461,6.3e-07,87300.0,87299.0,1.03678406]
[1742799140447,6.3e-07,87300.0,87299.0,1.04174406]
[1742799144150,6.3e-07,87300.0,87299.0,1.04170406]
[1742799145475,6.3e-07,87300.0,87299.0,0.90610406]
[1742799145656,6.3e-07,87300.0,87299.0,1.04170406]
[1742799146031,6.3e-07,87300.0,87299.0,1.0529359]
[1742799150216,0.00017003,87300.0,87299.0,1.0529359]
[1742799154683,0.00017003,87300.0,87299.0,0.9173359]
[1742799154806,0.00017003,87300.0,87299.0,1.0528559]
[1742799157642,0.00017003,87300.0,87299.0,1.0505279]
[1742799161653,0.00017003,87300.0,87299.0,0.9742279]
[1742799161808,0.00017003,87300.0,87299.0,0.9745671]
[1742799162012,0.00017003,87300.0,87299.0,0.8390471]
[1742799162224,0.00017003,87300.0,87299.0,0.9745271]
[1742799163377,0.00017003,87300.0,87299.0,0.96329526]
[1742799168339,0.00017003,87300.0,87299.0,0.99892469]
[1742799168538,0.00017003,87300.0,87299.0,0.96329526]
[1742799169485,0.00017003,87300.0,87299.0,0.99893864]
[1742799172518,0.00017003,87300.0,87299.0,0.96329526]
[1742799180121,0.00017003,87300.0,87299.0,0.39309526]
[1742799185745,0.00017003,87300.0,87299.0,0.39297526]
[1742799186770,0.00017003,87300.0,87299.0,0.25761526]
[1742799186995,0.00017003,87300.0,87299.0,0.39297526]
[1742799187167,0.00017003,87300.0,87299.0,0.25761526]
[1742799187372,0.00017003,87300.0,87299.0,0.39297526]
[1742799192416,0.00017003,87300.0,87299.0,0.47327526]
[1742799199514,0.00017003,87300.0,87299.0,0.25761526]
[1742799199863,0.00017003,87300.0,87299.0,0.39293526]
[1742799200547,0.00017003,87300.0,87299.0,0.12391423]
[1742799200732,0.00017003,87300.0,87299.0,0.0043392]
[1742799201339,0.00017003,87300.0,87299.0,0.0073392]
[1742799201675,0.00017003,87300.0,87299.0,0.0003392]
[1742799203085,0.00017003,87300.0,87299.0,0.0023392]
[1742799203244,0.00017003,87300.0,87299.0,0.10318794]
[1742799203648,0.00017003,87300.0,87299.0,0.10418794]
[1742799204990,0.00017003,87300.0,87299.0,0.09273394]
[1742799206582,0.00017003,87300.0,87299.0,0.10418794]
[1742799207858,0.00017003,87300.0,87299.0,0.09273394]
[1742799209104,0.00017003,87300.0,87299.0,0.0033392]
[1742799209105,0.00846322,87300.0,87299.0,0.0033392]
[1742799217390,0.01346322,87300.0,87299.0,0.0033392]
[1742799218395,0.01346322,87300.0,87299.0,0.0023392]
[1742799219176,0.26855307,87300.0,87299.0,0.0003392]
[1742799219541,0.61725307,87300.0,87299.0,0.0003392]
[1742799220103,0.61725307,87300.0,87299.0,0.0013392]
[1742799220583,0.61725307,87300.0,87299.0,0.0023392]
[1742799220788,0.61725307,87300.0,87299.0,0.0003392]
[1742799221204,0.61725307,87300.0,87299.0,0.01444474]
[1742799221823,0.61825307,87300.0,87299.0,0.01444474]
[1742799222147,0.31446322,87300.0,87299.0,0.01444474]
[1742799222491,0.30946322,87300.0,87299.0,0.01444474]
[1742799222911,0.31446322,87300.0,87299.0,0.01444474]
[1742799225280,0.31446322,87300.0,87299.0,0.0003392]
[1742799227174,0.55809907,87300.0,87299.0,0.0003392]
[1742799227379,0.56955307,87300.0,87299.0,0.0003392]
[1742799227586,0.55809907,87300.0,87299.0,0.0003392]
[1742799227810,0.32900407,87300.0,87299.0,0.0003392]
[1742799229604,0.34045807,87300.0,87299.0,0.0003392]
[1742799230513,0.56955307,87300.0,87299.0,0.0003392]
[1742799233550,0.32900407,87300.0,87299.0,0.0003392]
[1742799233756,0.32900407,87300.0,87299.0,0.04619552]
[1742799234475,0.32900407,87300.0,87299.0,0.0003392]
[1742799240709,0.34045807,87300.0,87299.0,0.0003392]
[1742799280273,0.4600331,87300.0,87299.0,0.0003392]
[1742799280483,0.5334331,87300.0,87299.0,2e-07]
[1742799280762,0.6684331,87300.0,87299.0,2e-07]
[1742799281766,0.6674331,87300.0,87299.0,2e-07]
[1742799283162,0.6684331,87300.0,87299.0,2e-07]
[1742799283510,0.6674331,87300.0,87299.0,2e-07]
[1742799283707,0.6724331,87300.0,87299.0,2e-07]
[1742799283922,0.79200813,87300.0,87299.0,2e-07]
[1742799284126,0.79300813,87300.0,87299.0,2e-07]
[1742799284743,0.6734331,87300.0,87299.0,2e-07]
[1742799293751,0.5384331,87300.0,87299.0,2e-07]
[1742799293961,0.6733931,87300.0,87299.0,2e-07]
[1742799294541,0.69133995,87300.0,87299.0,2e-07]
[1742799294742,0.6733931,87300.0,87299.0,2e-07]
[1742799294948,1.2436731,87300.0,87299.0,2e-07]
[1742799295723,0.540579,87289.0,87288.0,1e-06]
[1742799295868,0.67469488,87289.0,87288.0,1e-06]
[1742799297132,0.67769488,87289.0,87288.0,1e-06]
[1742799297341,0.68069488,87289.0,87288.0,1e-06]
[1742799297498,0.69864199,87289.0,87288.0,1e-06]
[1742799299114,0.70603358,87289.0,87288.0,1e-06]
[1742799299696,1.27631358,87289.0,87288.0,1e-06]
[1742799303177,1.41123358,87289.0,87288.0,1e-06]
[1742799303404,1.28131358,87289.0,87288.0,0.078001]
[1742799303634,0.2769177,87289.0,87288.0,0.0904211]
[1742799303827,0.2769177,87289.0,87288.0,0.1366211]
[1742799303828,0.25897059,87289.0,87288.0,0.1366211]
[1742799304025,0.25897059,87289.0,87288.0,0.124201]
[1742799304399,0.27351144,87289.0,87288.0,0.124201]
[1742799304804,0.25897059,87289.0,87288.0,0.124201]
[1742799305007,0.27051144,87289.0,87288.0,0.124201]
[1742799305694,0.57051144,87289.0,87288.0,0.124201]
[1742799306519,0.57351144,87289.0,87288.0,0.1366211]
[1742799306683,0.59145702,87289.0,87288.0,0.1366211]
[1742799306882,0.58845702,87289.0,87288.0,0.124201]
[1742799307388,0.59145702,87289.0,87288.0,0.124201]
[1742799311974,0.59145702,87289.0,87288.0,0.124201]
[1742799319736,0.59145702,87289.0,87288.0,0.078001]
[1742799351763,0.59145702,87289.0,87288.0,1e-06]
[1742799352196,0.71103205,87289.0,87288.0,1e-06]
[1742799352528,0.69308647,87289.0,87288.0,1e-06]
[1742799353386,0.68708647,87289.0,87288.0,1e-06]
[1742799353550,0.69308647,87289.0,87288.0,1e-06]
[1742799353756,0.69808647,87289.0,87288.0,1e-06]
[1742799354555,0.69808647,87289.0,87288.0,0.079301]
[1742799354556,0.33793244,87289.0,87288.0,0.079301]
[1742799354753,0.56397059,87289.0,87288.0,0.1146854]
[1742799354999,0.57851144,87289.0,87288.0,0.079301]
[1742799357173,0.59645798,87289.0,87288.0,0.079301]
[1742799389259,0.60380433,87289.0,87288.0,0.079301]
[1742799406187,0.60380433,87289.0,87288.0,0.128701]
[1742799426763,0.60380433,87289.0,87288.0,0.079301]
[1742799430703,0.58585779,87289.0,87288.0,0.079301]
[1742799433199,0.58585779,87289.0,87288.0,1e-06]
[1742799434190,0.60380432,87289.0,87288.0,1e-06]
[1742799436743,0.72337935,87289.0,87288.0,1e-06]
[1742799436940,1.31368485,87289.0,87288.0,1e-06]
[1742799437277,1.01968182,87289.0,87288.0,1e-06]
[1742799437481,1.13750982,87289.0,87288.0,1e-06]
[1742799438591,1.13150982,87289.0,87288.0,1e-06]
[1742799439160,1.13650982,87289.0,87288.0,1e-06]
[1742799439406,1.13150982,87289.0,87288.0,1e-06]
[1742799439832,1.13650982,87289.0,87288.0,1e-06]
[1742799440503,1.16150982,87289.0,87288.0,1e-06]
[1742799441552,1.17945852,87289.0,87288.0,1e-06]
[1742799444054,0.86375282,87289.0,87288.0,1e-06]
[1742799445169,0.72943282,87289.0,87288.0,1e-06]
[1742799445370,0.72943282,87289.0,87288.0,0.075001]
[1742799445371,0.27031694,87289.0,87288.0,0.075001]
[1742799445598,0.27031694,87289.0,87288.0,0.0825011]
[1742799446121,0.56531694,87289.0,87288.0,0.0825011]
[1742799446343,0.27485779,87289.0,87288.0,0.0825011]
[1742799446551,0.27485779,87289.0,87288.0,0.1291011]
[1742799446552,0.27985779,87289.0,87288.0,0.1291011]
[1742799446747,0.28485779,87289.0,87288.0,0.1291011]
[1742799446952,0.27985779,87289.0,87288.0,0.1291011]
[1742799447184,0.29780402,87289.0,87288.0,0.1291011]
[1742799447899,0.29280402,87289.0,87288.0,0.1291011]
[1742799448209,0.28326317,87289.0,87288.0,0.1291011]
[1742799448434,0.30280402,87289.0,87288.0,0.1291011]
[1742799448708,0.29280402,87289.0,87288.0,0.121601]
[1742799448920,0.29780402,87289.0,87288.0,0.121601]
[1742799449247,0.30280402,87289.0,87288.0,0.121601]
[1742799451867,0.30280402,87289.0,87288.0,0.075001]
[1742799455988,0.60280402,87289.0,87288.0,0.075001]
[1742799459686,0.60280402,87289.0,87288.0,0.063001]
[1742799460129,0.60280402,87289.0,87288.0,0.0693011]
[1742799460340,0.60280402,87289.0,87288.0,0.063001]
[1742799463011,0.60280402,87289.0,87288.0,0.0633402]
[1742799475742,0.60297362,87289.0,87288.0,0.0633402]
[1742799479368,0.60933614,87289.0,87288.0,0.0633402]
[1742799481252,0.72891117,87289.0,87288.0,0.0003392]
[1742799481637,0.71096494,87289.0,87288.0,0.0003392]
[1742799481844,0.71096494,87289.0,87288.0,0.0823392]
[1742799485226,0.83053997,87289.0,87288.0,0.0823392]
[1742799485365,0.71096494,87289.0,87288.0,0.0823392]
[1742799486214,0.72891148,87289.0,87288.0,0.0823392]
[1742799487179,0.72891148,87289.0,87288.0,0.0003392]
[1742799488008,0.72891148,87289.0,87288.0,2e-07]
[1742799488205,0.84848651,87289.0,87288.0,2e-07]
[1742799488494,0.72891148,87289.0,87288.0,2e-07]
[1742799489178,0.71891148,87289.0,87288.0,2e-07]
[1742799489379,0.74391148,87289.0,87288.0,2e-07]
[1742799489710,0.74891148,87289.0,87288.0,2e-07]
[1742799490499,0.75391148,87289.0,87288.0,2e-07]
[1742799490813,0.74891148,87289.0,87288.0,2e-07]
[1742799491219,0.75391148,87289.0,87288.0,2e-07]
[1742799493048,0.86053997,87289.0,87288.0,2e-07]
[1742799493492,0.74096494,87289.0,87288.0,2e-07]
[1742799493899,0.73596494,87289.0,87288.0,2e-07]
[1742799494101,0.74096494,87289.0,87288.0,2e-07]
[1742799494456,0.73596494,87289.0,87288.0,2e-07]
[1742799494738,0.73096494,87289.0,87288.0,2e-07]
[1742799494912,0.73596494,87289.0,87288.0,2e-07]
[1742799495827,0.85553997,87289.0,87288.0,2e-07]
[1742799496186,0.87849202,87289.0,87288.0,2e-07]
[1742799496392,0.87349202,87289.0,87288.0,2e-07]
[1742799496803,0.87849202,87289.0,87288.0,2e-07]
[1742799502440,1.44889202,87289.0,87288.0,2e-07]
[1742799506450,1.32431699,87289.0,87288.0,2e-07]
[1742799506655,0.98477614,87289.0,87288.0,0.0786002]
[1742799506863,0.86520111,87289.0,87288.0,0.1279002]
[1742799507069,0.84724906,87289.0,87288.0,0.1279002]
[1742799507679,0.86178991,87289.0,87288.0,0.1279002]
[1742799507888,0.85678991,87289.0,87288.0,0.1279002]
[1742799508291,1.16178991,87289.0,87288.0,0.1279002]
[1742799509052,1.15678991,87289.0,87288.0,0.1279002]
[1742799509341,1.16178991,87289.0,87288.0,0.1279002]
[1742799509682,1.15678991,87289.0,87288.0,0.1279002]
[1742799509903,1.15178991,87289.0,87288.0,0.1279002]
[1742799510107,1.16178991,87289.0,87288.0,0.1279002]
[1742799511196,1.17973757,87289.0,87288.0,0.1279002]
[1742799511376,1.16178991,87289.0,87288.0,0.1279002]
[1742799515443,1.17973753,87289.0,87288.0,0.1279002]
[1742799521570,0.60933753,87289.0,87288.0,0.1279002]
[1742799523051,0.60933753,87289.0,87288.0,0.14069022]
[1742799523260,0.60933753,87289.0,87288.0,0.1279002]
[1742799528342,0.72891256,87289.0,87288.0,2e-07]
[1742799533446,0.71096494,87289.0,87288.0,2e-07]
[1742799537945,0.72891336,87289.0,87288.0,2e-07]
[1742799542250,0.71096494,87289.0,87288.0,2e-07]
[1742799543593,0.71096494,87289.0,87288.0,0.0785002]
[1742799546491,0.72891319,87289.0,87288.0,0.0785002]
[1742799552159,0.71096494,87289.0,87288.0,0.0785002]
[1742799553310,0.71096494,87289.0,87288.0,2e-07]
[1742799556639,0.72891338,87289.0,87288.0,2e-07]
[1742799558689,0.72891338,87289.0,87288.0,0.09075022]
[1742799559214,0.2947975,87289.0,87288.0,0.1303002]
[1742799559945,0.5947975,87289.0,87288.0,0.1303002]
[1742799560306,0.60433835,87289.0,87288.0,0.1303002]
[1742799560715,0.60933835,87289.0,87288.0,0.1303002]
[1742799561341,0.60433835,87289.0,87288.0,0.1303002]
[1742799561589,0.60433835,87289.0,87288.0,0.14333022]
[1742799561793,0.60933835,87289.0,87288.0,0.14333022]
[1742799562761,0.60933835,87289.0,87288.0,0.1303002]
[1742799565758,0.63079266,87289.0,87288.0,0.1303002]
[1742799567413,0.62579266,87289.0,87288.0,0.1303002]
[1742799567613,0.62079266,87289.0,87288.0,0.1303002]
[1742799568035,0.62579266,87289.0,87288.0,0.1303002]
[1742799568441,0.63079266,87289.0,87288.0,0.1303002]
[1742799569447,0.63597135,87289.0,87288.0,0.1303002]
[1742799570396,0.63597135,87289.0,87288.0,0.0825002]
[1742799577663,0.61802291,87289.0,87288.0,0.0825002]
[1742799580277,0.63597057,87289.0,87288.0,0.0825002]
[1742799584044,0.63597057,87289.0,87288.0,0.09075022]
[1742799585246,0.63597057,87289.0,87288.0,0.13645022]
[1742799585459,0.62142972,87289.0,87288.0,0.13645022]
[1742799585638,0.60348206,87289.0,87288.0,0.13645022]
[1742799586248,0.61802291,87289.0,87288.0,0.13645022]
[1742799586699,0.61802291,87289.0,87288.0,0.1282002]
[1742799588389,0.61451525,87289.0,87288.0,0.1282002]
[1742799601532,0.58917701,87289.0,87288.0,0.1282002]
[1742799604576,0.32905716,87289.0,87288.0,0.1282002]
[1742799604740,0.32905716,87289.0,87288.0,0.25923123]
[1742799605153,0.32905716,87289.0,87288.0,0.36956485]
[1742799605449,0.32905716,87289.0,87288.0,0.35810885]
[1742799605659,0.32405716,87289.0,87288.0,0.35810885]
[1742799605964,0.31905716,87289.0,87288.0,0.35810885]
[1742799606169,0.32905716,87289.0,87288.0,0.35810885]
[1742799606515,0.31905716,87289.0,87288.0,0.35810885]
[1742799606721,0.32305716,87289.0,87288.0,0.58723485]
[1742799606945,0.32805716,87289.0,87288.0,0.58723485]
[1742799607344,0.34259801,87289.0,87288.0,0.1282002]
[1742799607617,0.58817701,87289.0,87288.0,0.1282002]
[1742799609112,0.60612328,87289.0,87288.0,0.1282002]
[1742799610774,0.34600343,87289.0,87288.0,0.1282002]
[1742799611198,0.32805716,87289.0,87288.0,0.25923123]
[1742799611400,0.00017003,87300.0,87298.0,0.011455]
[1742799611609,0.00017003,87300.0,87298.0,0.48882061]
[1742799611910,0.00017003,87300.0,87298.0,0.58352409]
[1742799612836,0.0041696,87299.0,87298.0,0.58352409]
[1742799613095,0.1,87310.0,87306.0,0.236532]
[1742799613268,0.1,87310.0,87306.0,0.56836703]
[1742799613733,0.1,87310.0,87306.0,0.55791403]
[1742799613906,0.1,87310.0,87306.0,0.68894206]
[1742799614215,0.1,87310.0,87306.0,0.67748906]
[1742799614438,0.0117922,87307.0,87306.0,0.19807503]
[1742799614633,0.0167922,87307.0,87306.0,0.0785]
[1742799614883,0.03133305,87307.0,87306.0,0.0785]
[1742799615295,0.011454,87300.0,87299.0,0.1264]
[1742799615477,0.245549,87300.0,87299.0,0.1264]
[1742799615675,0.245549,87300.0,87299.0,0.1982386]
[1742799615904,0.016454,87300.0,87299.0,0.1982386]
[1742799616295,0.005,87300.0,87299.0,0.1982386]
[1742799617067,0.0162807,87300.0,87299.0,0.1982386]
[1742799617271,0.011455,87292.0,87291.0,0.0785]
[1742799617485,0.03082355,87289.0,87288.0,2e-07]
[1742799617828,0.55994655,87289.0,87288.0,2e-07]
[1742799617954,0.57789292,87289.0,87288.0,2e-07]
[1742799619184,0.69746795,87289.0,87288.0,2e-07]
[1742799620982,0.55994655,87289.0,87288.0,2e-07]
[1742799621394,0.5454057,87289.0,87288.0,2e-07]
[1742799621550,0.5504057,87289.0,87288.0,2e-07]
[1742799622143,0.56494655,87289.0,87288.0,2e-07]
[1742799622833,0.56294655,87289.0,87288.0,2e-07]
[1742799623233,0.56794655,87289.0,87288.0,2e-07]
[1742799625307,0.58589402,87289.0,87288.0,2e-07]
[1742799625511,0.58589402,87289.0,87288.0,0.00803022]
[1742799626376,0.58589402,87289.0,87288.0,2e-07]
[1742799627525,0.70546905,87289.0,87288.0,2e-07]
[1742799629930,0.58589402,87289.0,87288.0,2e-07]
[1742799630136,0.57135317,87289.0,87288.0,2e-07]
[1742799630334,0.58589402,87289.0,87288.0,2e-07]
[1742799640640,0.58589402,87289.0,87288.0,0.0812002]
[1742799640979,0.58589402,87289.0,87288.0,0.08932022]
[1742799641522,0.58589402,87289.0,87288.0,0.0812002]
[1742799641679,0.58589402,87289.0,87288.0,2e-07]
[1742799647734,0.28589402,87289.0,87288.0,2e-07]
[1742799648101,0.26794655,87289.0,87288.0,2e-07]
[1742799648497,0.0128267,87289.0,87288.0,2e-07]
[1742799648699,0.008,87289.0,87288.0,0.10901244]
[1742799648898,0.008,87289.0,87288.0,0.11130341]
[1742799649062,0.008,87289.0,87288.0,0.10901244]
[1742799650250,0.240578,87290.0,87288.0,0.10901244]
[1742799650421,0.540578,87290.0,87289.0,0.04418284]
[1742799650625,0.011456,87289.0,87288.0,0.10901244]
[1742799651199,0.014456,87289.0,87288.0,0.10901244]
[1742799651445,0.003,87289.0,87288.0,0.10901244]
[1742799651885,0.003,87289.0,87288.0,0.33813844]
[1742799653011,0.006,87289.0,87288.0,0.10901244]
[1742799657736,0.006,87289.0,87288.0,0.22858747]
[1742799659660,0.006,87289.0,87288.0,0.45771347]
[1742799660873,0.006,87289.0,87288.0,0.59135347]
[1742799662298,0.006,87289.0,87288.0,0.24265244]
[1742799662503,0.235123,87289.0,87288.0,0.24265244]
[1742799663353,0.006,87289.0,87288.0,0.24265244]
[1742799668344,0.011456,87290.0,87288.0,0.24265244]
[1742799668550,0.011456,87290.0,87289.0,0.07009194]
[1742799669362,0.229116,87292.0,87289.0,0.07009194]
[1742799670454,0.006,87290.0,87289.0,0.07009194]
[1742799670605,0.003,87290.0,87289.0,0.07009194]
[1742799670808,0.3,87291.0,87289.0,0.07009194]
[1742799670995,0.3,87291.0,87290.0,0.10001384]
[1742799672932,0.303,87291.0,87290.0,0.10001384]
[1742799680917,0.003,87291.0,87290.0,0.10001384]
[1742799686461,0.003,87291.0,87290.0,0.44870987]
[1742799687069,0.003,87291.0,87290.0,0.44904907]
[1742799687267,0.0031696,87291.0,87290.0,0.44904907]
[1742799688647,0.0031696,87291.0,87290.0,0.21992807]
[1742799690799,0.0031696,87291.0,87290.0,0.10035304]
[1742799690991,0.03399215,87291.0,87290.0,0.0003392]
[1742799697666,0.0194513,87291.0,87290.0,0.0003392]
[1742799699405,0.0194513,87291.0,87290.0,0.0003392]
[1742799701788,0.03399215,87291.0,87290.0,0.0003392]
[1742799712053,0.45356718,87291.0,87290.0,0.0003392]
[1742799712225,0.50006718,87291.0,87290.0,0.0003392]
[1742799712427,0.38049215,87291.0,87290.0,0.0003392]
[1742799712640,0.33499215,87291.0,87290.0,0.0003392]
[1742799712852,0.33499215,87291.0,87290.0,0.00849314]
[1742799713577,0.33199215,87291.0,87290.0,0.00849314]
[1742799713724,0.33699215,87291.0,87290.0,0.00849314]
[1742799713934,0.3109963,87291.0,87290.0,0.00849314]
[1742799714115,0.0174513,87291.0,87290.0,0.00849314]
[1742799714454,0.0164513,87291.0,87290.0,0.00849314]
[1742799714657,0.3204513,87291.0,87290.0,0.00849314]
[1742799714808,0.3091696,87291.0,87290.0,0.00849314]
[1742799715001,0.3206246,87291.0,87290.0,0.00849314]
[1742799715428,0.3156246,87291.0,87290.0,0.00849314]
[1742799715757,0.3206246,87291.0,87290.0,0.00849314]
[1742799716078,0.33856965,87291.0,87290.0,0.00849314]
[1742799717543,0.02711465,87291.0,87290.0,0.00849314]
[1742799717916,0.03856965,87291.0,87290.0,0.00849314]
[1742799720060,0.03856965,87291.0,87290.0,0.14193314]
[1742799720267,0.03856965,87291.0,87290.0,0.1337792]
[1742799720668,0.03856965,87291.0,87290.0,0.0003392]
[1742799721240,0.0579372,87291.0,87290.0,0.0003392]
[1742799721778,0.03999215,87291.0,87290.0,0.0003392]
[1742799722674,0.0206246,87291.0,87290.0,0.0003392]
[1742799723017,0.0206246,87291.0,87290.0,0.00849314]
[1742799725125,0.03856968,87291.0,87290.0,0.00849314]
[1742799726155,0.02711468,87291.0,87290.0,0.00849314]
[1742799726387,0.02711468,87291.0,87290.0,0.37093616]
[1742799726496,0.02711468,87291.0,87290.0,0.49944517]
[1742799726706,0.0091696,87291.0,87290.0,0.49944517]
[1742799727390,0.0001696,87291.0,87290.0,0.49944517]
[1742799727701,0.0031696,87291.0,87290.0,0.49944517]
[1742799727994,0.0061696,87291.0,87290.0,0.49944517]